[Event "Late-Titled-Tuesday-Blitz-April-30-2024"]
[Site "Chess.com"]
[Date "2024.04.30"]
[Round "2"]
[White "jactorres"]
[Black "brother-bear"]
[Result "1-0"]
[WhiteElo "2448"]
[BlackElo "2052"]
[TimeControl "180+1"]
[EndTime "14:18:59 PDT"]
[Termination "jactorres won on time"]

1. e4 {[%clk 0:02:57.6]} 1... c6 {[%clk 0:02:57.9]} 2. d4 {[%clk 0:02:57.7]}
2... d5 {[%clk 0:02:58.3]} 3. exd5 {[%clk 0:02:58.6]} 3... cxd5 {[%clk
0:02:58.1]} 4. c4 {[%clk 0:02:59.3]} 4... Nf6 {[%clk 0:02:56.8]} 5. Nc3 {[%clk
0:02:59.6]} 5... Nc6 {[%clk 0:02:56.1]} 6. Bg5 {[%clk 0:03:00.2]} 6... Be6
{[%clk 0:02:54.1]} 7. c5 {[%clk 0:02:58.4]} 7... Ne4 {[%clk 0:02:47.4]} 8. Bf4
{[%clk 0:02:32.6]} 8... Nxc3 {[%clk 0:02:34.7]} 9. bxc3 {[%clk 0:02:32.4]} 9...
g6 {[%clk 0:02:35.4]} 10. Nf3 {[%clk 0:02:28.4]} 10... Bg7 {[%clk 0:02:35.5]}
11. Bb5 {[%clk 0:02:25.5]} 11... O-O {[%clk 0:02:34.1]} 12. O-O {[%clk
0:02:25.6]} 12... a6 {[%clk 0:02:23.4]} 13. Bd3 {[%clk 0:02:22]} 13... Bg4
{[%clk 0:02:20.6]} 14. h3 {[%clk 0:02:20.5]} 14... Bxf3 {[%clk 0:02:20.1]} 15.
Qxf3 {[%clk 0:02:20.5]} 15... e6 {[%clk 0:02:20.5]} 16. Rab1 {[%clk 0:02:14.2]}
16... e5 {[%clk 0:01:58.5]} 17. dxe5 {[%clk 0:02:01.6]} 17... Nxe5 {[%clk
0:01:58.2]} 18. Bxe5 {[%clk 0:01:58.2]} 18... Bxe5 {[%clk 0:01:58.3]} 19. c4
{[%clk 0:01:55.3]} 19... dxc4 {[%clk 0:01:33.9]} 20. Bxc4 {[%clk 0:01:56.2]}
20... Rb8 {[%clk 0:01:28.2]} 21. Rxb7 {[%clk 0:01:45.1]} 21... Rxb7 {[%clk
0:01:27.9]} 22. Qxb7 {[%clk 0:01:45.3]} 22... Qd4 {[%clk 0:01:23.8]} 23. Qd5
{[%clk 0:01:34.9]} 23... a5 {[%clk 0:01:12.1]} 24. Qxd4 {[%clk 0:01:28.6]} 24...
Bxd4 {[%clk 0:01:11.6]} 25. c6 {[%clk 0:01:26.7]} 25... Be5 {[%clk 0:01:00.9]}
26. Rd1 {[%clk 0:01:16.4]} 26... Rc8 {[%clk 0:00:56.3]} 27. Bb5 {[%clk
0:00:39.2]} 27... Rc7 {[%clk 0:00:54.8]} 28. Rd8+ {[%clk 0:00:34.7]} 28... Kg7
{[%clk 0:00:54]} 29. g3 {[%clk 0:00:35.1]} 29... Kf6 {[%clk 0:00:51.3]} 30. Kg2
{[%clk 0:00:34.1]} 30... h5 {[%clk 0:00:50.3]} 31. h4 {[%clk 0:00:34.2]} 31...
Ke7 {[%clk 0:00:50.3]} 32. Ra8 {[%clk 0:00:21.4]} 32... Bc3 {[%clk 0:00:49.6]}
33. Kf3 {[%clk 0:00:20.7]} 33... Be1 {[%clk 0:00:48]} 34. Ke2 {[%clk 0:00:19.8]}
34... Bb4 {[%clk 0:00:46.5]} 35. a3 {[%clk 0:00:18.3]} 35... Bxa3 {[%clk
0:00:43.9]} 36. Rxa5 {[%clk 0:00:18.9]} 36... Bd6 {[%clk 0:00:40.5]} 37. Ra4
{[%clk 0:00:17.4]} 37... f6 {[%clk 0:00:37.4]} 38. Re4+ {[%clk 0:00:17.4]} 38...
Kf7 {[%clk 0:00:34]} 39. Bc4+ {[%clk 0:00:16.4]} 39... Kg7 {[%clk 0:00:32.4]}
40. Bb5 {[%clk 0:00:15.3]} 40... Kf7 {[%clk 0:00:25.5]} 41. Kd3 {[%clk
0:00:15.6]} 41... g5 {[%clk 0:00:18.4]} 42. Kc4 {[%clk 0:00:12.8]} 42... gxh4
{[%clk 0:00:17.5]} 43. gxh4 {[%clk 0:00:13.7]} 43... Re7 {[%clk 0:00:10.8]} 44.
Rd4 {[%clk 0:00:10.7]} 44... Bc7 {[%clk 0:00:08.2]} 45. Rd7 {[%clk 0:00:09.7]}
45... Rxd7 {[%clk 0:00:07.2]} 46. cxd7 {[%clk 0:00:10.4]} 46... Ke7 {[%clk
0:00:04.5]} 47. Kd5 {[%clk 0:00:07.8]} 47... Bb6 {[%clk 0:00:02.4]} 48. Kc6
{[%clk 0:00:03.3]} 48... Bd8 {[%clk 0:00:01.8]} 49. Bc4 {[%clk 0:00:02.5]} 1-0

[Event "Late-Titled-Tuesday-Blitz-April-30-2024"]
[Site "Chess.com"]
[Date "2024.04.30"]
[Round "2"]
[White "frederiksvane"]
[Black "BabageldiAnnaberdiyev"]
[Result "1-0"]
[WhiteElo "3016"]
[BlackElo "2623"]
[TimeControl "180+1"]
[EndTime "14:19:00 PDT"]
[Termination "frederiksvane won on time"]

1. b3 {[%clk 0:03:00.9]} 1... e6 {[%clk 0:02:55.3]} 2. Bb2 {[%clk 0:03:00]} 2...
d5 {[%clk 0:02:55.7]} 3. Nf3 {[%clk 0:02:59.7]} 3... f5 {[%clk 0:02:50.4]} 4. e3
{[%clk 0:02:55.6]} 4... Nf6 {[%clk 0:02:50.8]} 5. c4 {[%clk 0:02:55.1]} 5... c6
{[%clk 0:02:50.5]} 6. Be2 {[%clk 0:02:50.9]} 6... Bd6 {[%clk 0:02:48.6]} 7. O-O
{[%clk 0:02:51.2]} 7... O-O {[%clk 0:02:48.5]} 8. d4 {[%clk 0:02:51.5]} 8... a5
{[%clk 0:02:48.4]} 9. Nc3 {[%clk 0:02:50.4]} 9... Nbd7 {[%clk 0:02:46.1]} 10.
Qc2 {[%clk 0:02:35.1]} 10... Ne4 {[%clk 0:02:45.2]} 11. Bd3 {[%clk 0:02:26]}
11... Rf6 {[%clk 0:02:35.4]} 12. Ne2 {[%clk 0:02:25.2]} 12... Rh6 {[%clk
0:02:27.4]} 13. g3 {[%clk 0:02:23.5]} 13... Qf6 {[%clk 0:02:23.5]} 14. Kg2
{[%clk 0:02:12.5]} 14... g5 {[%clk 0:02:21.8]} 15. Rh1 {[%clk 0:01:42.5]} 15...
g4 {[%clk 0:02:12]} 16. Nfg1 {[%clk 0:01:39]} 16... Nf8 {[%clk 0:01:54.6]} 17.
Rf1 {[%clk 0:01:23]} 17... Ng6 {[%clk 0:01:47.3]} 18. h3 {[%clk 0:00:45.8]}
18... gxh3+ {[%clk 0:01:37.9]} 19. Rxh3 {[%clk 0:00:45.6]} 19... Rxh3 {[%clk
0:01:36]} 20. Nxh3 {[%clk 0:00:45.8]} 20... Bd7 {[%clk 0:01:36.1]} 21. f3 {[%clk
0:00:31]} 21... Ng5 {[%clk 0:01:21.1]} 22. Rh1 {[%clk 0:00:22.9]} 22... Nxh3
{[%clk 0:01:19.9]} 23. Rxh3 {[%clk 0:00:23.8]} 23... Rf8 {[%clk 0:01:16.1]} 24.
Qc1 {[%clk 0:00:23.4]} 24... Rf7 {[%clk 0:01:14.7]} 25. f4 {[%clk 0:00:20.7]}
25... Rg7 {[%clk 0:01:13.1]} 26. Ng1 {[%clk 0:00:20]} 26... Be8 {[%clk
0:01:09.1]} 27. Nf3 {[%clk 0:00:18.5]} 27... h5 {[%clk 0:00:55.1]} 28. Kf2
{[%clk 0:00:16.2]} 28... Ne7 {[%clk 0:00:51.4]} 29. Ba3 {[%clk 0:00:11.4]} 29...
Bc7 {[%clk 0:00:42.8]} 30. Bxe7 {[%clk 0:00:11.4]} 30... Qxe7 {[%clk 0:00:40.9]}
31. Qd2 {[%clk 0:00:09.3]} 31... Bg6 {[%clk 0:00:24.4]} 32. Be2 {[%clk 0:00:09]}
32... Qa3 {[%clk 0:00:22]} 33. Ng5 {[%clk 0:00:09.2]} 33... Qe7 {[%clk
0:00:11.3]} 34. Bxh5 {[%clk 0:00:09.2]} 34... dxc4 {[%clk 0:00:07.7]} 35. bxc4
{[%clk 0:00:09.2]} 35... b5 {[%clk 0:00:06.7]} 36. Qe2 {[%clk 0:00:08.9]} 36...
Qf6 {[%clk 0:00:04.7]} 37. Bxg6 {[%clk 0:00:08.2]} 37... Qxg6 {[%clk 0:00:05.2]}
38. cxb5 {[%clk 0:00:08.8]} 38... cxb5 {[%clk 0:00:04.3]} 39. Qxb5 {[%clk
0:00:09.6]} 39... Bd8 {[%clk 0:00:04.6]} 40. Qb8 {[%clk 0:00:06.8]} 40... Qe8
{[%clk 0:00:04.7]} 41. Nxe6 {[%clk 0:00:06.7]} 41... Qxe6 {[%clk 0:00:03]} 42.
Qxd8+ {[%clk 0:00:07]} 42... Kf7 {[%clk 0:00:03.6]} 43. Qc7+ {[%clk 0:00:07.5]}
43... Kg6 {[%clk 0:00:03.8]} 44. Qc2 {[%clk 0:00:06.6]} 44... Re7 {[%clk
0:00:04]} 45. g4 {[%clk 0:00:06.7]} 1-0

[Event "Late-Titled-Tuesday-Blitz-April-30-2024"]
[Site "Chess.com"]
[Date "2024.04.30"]
[Round "2"]
[White "LukaRadovic0803"]
[Black "NowInChess"]
[Result "1-0"]
[WhiteElo "2504"]
[BlackElo "2251"]
[TimeControl "180+1"]
[EndTime "14:19:03 PDT"]
[Termination "LukaRadovic0803 won on time"]

1. Nf3 {[%clk 0:02:59.6]} 1... Nf6 {[%clk 0:02:59.5]} 2. c4 {[%clk 0:02:59.3]}
2... g6 {[%clk 0:02:55.7]} 3. g3 {[%clk 0:02:59.3]} 3... Bg7 {[%clk 0:02:55.2]}
4. Bg2 {[%clk 0:02:59.9]} 4... d6 {[%clk 0:02:54.8]} 5. O-O {[%clk 0:03:00.3]}
5... O-O {[%clk 0:02:53.6]} 6. d4 {[%clk 0:03:00.8]} 6... c6 {[%clk 0:02:50.2]}
7. Nc3 {[%clk 0:03:00]} 7... Qa5 {[%clk 0:02:49.5]} 8. e4 {[%clk 0:03:00.4]}
8... Bg4 {[%clk 0:02:46.2]} 9. h3 {[%clk 0:02:58.3]} 9... Bxf3 {[%clk
0:02:45.8]} 10. Bxf3 {[%clk 0:02:58.5]} 10... e5 {[%clk 0:02:46.4]} 11. d5
{[%clk 0:02:58.1]} 11... cxd5 {[%clk 0:02:43.3]} 12. cxd5 {[%clk 0:02:57.6]}
12... Nbd7 {[%clk 0:02:38.9]} 13. Be3 {[%clk 0:02:56.7]} 13... Rfc8 {[%clk
0:02:36.2]} 14. a3 {[%clk 0:02:37.2]} 14... a6 {[%clk 0:02:25.6]} 15. b4 {[%clk
0:02:33.5]} 15... Qd8 {[%clk 0:02:25.1]} 16. Qc2 {[%clk 0:02:32.1]} 16... Rc4
{[%clk 0:02:17.7]} 17. Be2 {[%clk 0:02:28.1]} 17... Rc7 {[%clk 0:02:14.6]} 18.
Rfc1 {[%clk 0:02:23.6]} 18... Rac8 {[%clk 0:02:13.3]} 19. Qb3 {[%clk 0:02:20.7]}
19... Qf8 {[%clk 0:01:56.7]} 20. a4 {[%clk 0:02:15.4]} 20... Bh6 {[%clk
0:01:55]} 21. Bxh6 {[%clk 0:01:50.2]} 21... Qxh6 {[%clk 0:01:55.9]} 22. Rc2
{[%clk 0:01:45.6]} 22... Nxe4 {[%clk 0:01:50.1]} 23. Rac1 {[%clk 0:01:45.5]}
23... Nxc3 {[%clk 0:01:10.8]} 24. Rxc3 {[%clk 0:01:45.8]} 24... Qxc1+ {[%clk
0:01:11.1]} 25. Rxc1 {[%clk 0:01:46.2]} 25... Rxc1+ {[%clk 0:01:11.8]} 26. Kg2
{[%clk 0:01:46.3]} 26... f5 {[%clk 0:01:07.5]} 27. Qe3 {[%clk 0:01:38]} 27...
R1c2 {[%clk 0:00:57.6]} 28. Bd1 {[%clk 0:01:29.4]} 28... Rc1 {[%clk 0:00:56.4]}
29. Be2 {[%clk 0:01:28.3]} 29... R8c2 {[%clk 0:00:55.9]} 30. b5 {[%clk
0:01:15.2]} 30... a5 {[%clk 0:00:49.5]} 31. Qg5 {[%clk 0:01:10.6]} 31... Kf7
{[%clk 0:00:37.3]} 32. Bd3 {[%clk 0:00:40.8]} 32... Rc7 {[%clk 0:00:33.6]} 33.
Qd8 {[%clk 0:00:34.9]} 33... e4 {[%clk 0:00:33.5]} 34. b6 {[%clk 0:00:30.1]}
34... Nxb6 {[%clk 0:00:23.6]} 35. Bb5 {[%clk 0:00:29.7]} 35... e3 {[%clk
0:00:19]} 36. fxe3 {[%clk 0:00:24.2]} 36... R7c2+ {[%clk 0:00:17.5]} 37. Kf3
{[%clk 0:00:23.8]} 37... Nxd5 {[%clk 0:00:11.5]} 38. Qxd6 {[%clk 0:00:23.1]}
38... Ne7 {[%clk 0:00:10.6]} 39. Qd7 {[%clk 0:00:20.3]} 39... Rc8 {[%clk
0:00:06.8]} 40. Qxb7 {[%clk 0:00:17.8]} 40... R1c7 {[%clk 0:00:04.2]} 41. Qb6
{[%clk 0:00:16.6]} 41... Rc3 {[%clk 0:00:03.5]} 42. Qd4 {[%clk 0:00:16.1]} 42...
R8c5 {[%clk 0:00:01.2]} 43. Bd7 {[%clk 0:00:13.9]} 43... Nd5 {[%clk 0:00:01.2]}
44. Qd2 {[%clk 0:00:05]} 44... Rxe3+ {[%clk 0:00:01.5]} 45. Kf2 {[%clk
0:00:05.1]} 45... Rec3 {[%clk 0:00:00.7]} 46. Qe2 {[%clk 0:00:05.1]} 46... Rc2
{[%clk 0:00:01.1]} 47. Be6+ {[%clk 0:00:05]} 1-0

[Event "Late-Titled-Tuesday-Blitz-April-30-2024"]
[Site "Chess.com"]
[Date "2024.04.30"]
[Round "2"]
[White "rezamahdavi2008"]
[Black "Dhaydon19"]
[Result "0-1"]
[WhiteElo "2914"]
[BlackElo "2611"]
[TimeControl "180+1"]
[EndTime "14:19:04 PDT"]
[Termination "Dhaydon19 won by resignation"]

1. d4 {[%clk 0:03:00.2]} 1... c6 {[%clk 0:03:00.3]} 2. e4 {[%clk 0:02:59.1]}
2... d5 {[%clk 0:03:00.1]} 3. exd5 {[%clk 0:02:59.3]} 3... cxd5 {[%clk
0:02:59.9]} 4. Bd3 {[%clk 0:03:00.1]} 4... Nf6 {[%clk 0:03:00.4]} 5. c3 {[%clk
0:03:00.3]} 5... Nc6 {[%clk 0:03:00.6]} 6. Nf3 {[%clk 0:02:57.1]} 6... Bg4
{[%clk 0:03:00.5]} 7. h3 {[%clk 0:02:57.7]} 7... Bxf3 {[%clk 0:03:00]} 8. Qxf3
{[%clk 0:02:58.6]} 8... e6 {[%clk 0:02:58.8]} 9. O-O {[%clk 0:02:50.4]} 9... Bd6
{[%clk 0:02:41.5]} 10. Bg5 {[%clk 0:02:50]} 10... h6 {[%clk 0:02:41.4]} 11. Bh4
{[%clk 0:02:50.1]} 11... Be7 {[%clk 0:02:38.7]} 12. Nd2 {[%clk 0:02:47.9]} 12...
Qc7 {[%clk 0:02:33.1]} 13. Rfe1 {[%clk 0:02:45.8]} 13... O-O-O {[%clk
0:02:30.2]} 14. b4 {[%clk 0:02:44.5]} 14... Kb8 {[%clk 0:02:25.1]} 15. a4 {[%clk
0:02:44.4]} 15... e5 {[%clk 0:02:21.5]} 16. b5 {[%clk 0:02:35.3]} 16... e4
{[%clk 0:02:19.2]} 17. Qe3 {[%clk 0:02:36]} 17... Na5 {[%clk 0:02:14.4]} 18. Bf1
{[%clk 0:02:33.7]} 18... Bd6 {[%clk 0:02:09.4]} 19. Bg3 {[%clk 0:02:12.1]} 19...
Bxg3 {[%clk 0:02:05.5]} 20. fxg3 {[%clk 0:02:13]} 20... Nh5 {[%clk 0:02:04.1]}
21. Kh2 {[%clk 0:02:09.6]} 21... f5 {[%clk 0:02:01.7]} 22. c4 {[%clk 0:02:09.1]}
22... dxc4 {[%clk 0:01:57.3]} 23. Rac1 {[%clk 0:02:09.8]} 23... f4 {[%clk
0:01:37.4]} 24. gxf4 {[%clk 0:02:09.7]} 24... Nxf4 {[%clk 0:01:31.3]} 25. Kg1
{[%clk 0:02:09.6]} 25... Nd5 {[%clk 0:01:21.3]} 26. Qxe4 {[%clk 0:02:09.3]}
26... c3 {[%clk 0:01:19.9]} 27. Nf3 {[%clk 0:02:09.2]} 27... Rhf8 {[%clk
0:01:16.3]} 28. Ne5 {[%clk 0:02:07.8]} 28... Nb3 {[%clk 0:01:13.2]} 29. Rc2
{[%clk 0:02:04.8]} 29... Rf4 {[%clk 0:01:11.1]} 30. Qd3 {[%clk 0:01:57.3]} 30...
Nb4 {[%clk 0:01:02.7]} 31. Qg3 {[%clk 0:01:23.9]} 31... Nxc2 {[%clk 0:00:48.5]}
32. Re2 {[%clk 0:01:24.4]} 32... Ncxd4 {[%clk 0:00:46.7]} 33. Re3 {[%clk
0:01:24]} 33... Rxf1+ {[%clk 0:00:44]} 34. Kxf1 {[%clk 0:01:23.2]} 34... Nf5
{[%clk 0:00:44.3]} 35. Nd7+ {[%clk 0:01:22.1]} 35... Kc8 {[%clk 0:00:41.3]} 36.
Qxc7+ {[%clk 0:01:19.3]} 36... Kxc7 {[%clk 0:00:41.6]} 37. Rxc3+ {[%clk
0:01:20.1]} 37... Kxd7 {[%clk 0:00:41.4]} 38. Rxb3 {[%clk 0:01:20.7]} 38... Ke6
{[%clk 0:00:41.4]} 39. Rc3 {[%clk 0:01:18.1]} 39... Rd7 {[%clk 0:00:36.3]} 40.
Ke2 {[%clk 0:01:13.5]} 40... Kd5 {[%clk 0:00:36]} 41. Kf3 {[%clk 0:01:09.1]}
41... Nd4+ {[%clk 0:00:35.4]} 42. Kg4 {[%clk 0:01:09.6]} 42... Re7 {[%clk
0:00:32.4]} 43. Kh5 {[%clk 0:01:08.9]} 43... Re5+ {[%clk 0:00:32]} 44. Kh4
{[%clk 0:01:02.7]} 44... Nf5+ {[%clk 0:00:30.4]} 45. Kg4 {[%clk 0:00:59.2]}
45... Ne3+ {[%clk 0:00:30.2]} 46. Kf3 {[%clk 0:00:57.4]} 46... Nc4 {[%clk
0:00:27.2]} 47. Rd3+ {[%clk 0:00:58]} 47... Ke6 {[%clk 0:00:25.4]} 48. Rc3
{[%clk 0:00:55.9]} 48... Rc5 {[%clk 0:00:22.1]} 49. Kf4 {[%clk 0:00:51.7]} 49...
Ne5 {[%clk 0:00:20.6]} 50. Ra3 {[%clk 0:00:46]} 50... Rc4+ {[%clk 0:00:20.3]}
51. Kg3 {[%clk 0:00:44.7]} 51... g5 {[%clk 0:00:20.9]} 52. Ra2 {[%clk
0:00:40.9]} 52... h5 {[%clk 0:00:21.1]} 53. Ra3 {[%clk 0:00:41]} 53... h4+
{[%clk 0:00:21.8]} 54. Kh2 {[%clk 0:00:41.8]} 54... Re4 {[%clk 0:00:21.7]} 55.
Rc3 {[%clk 0:00:41.2]} 55... Re2 {[%clk 0:00:22.2]} 56. Kg1 {[%clk 0:00:39.8]}
56... Kd5 {[%clk 0:00:22.2]} 57. Rc7 {[%clk 0:00:40]} 57... Ra2 {[%clk
0:00:22.1]} 58. Rxb7 {[%clk 0:00:39.4]} 58... Rxa4 {[%clk 0:00:22.7]} 59. b6
{[%clk 0:00:40]} 59... axb6 {[%clk 0:00:22.1]} 60. Rxb6 {[%clk 0:00:40.9]} 60...
Ke4 {[%clk 0:00:22.5]} 61. Rf6 {[%clk 0:00:39.7]} 61... Ra1+ {[%clk 0:00:22]}
62. Kh2 {[%clk 0:00:39.7]} 62... Ra2 {[%clk 0:00:22.8]} 63. Kg1 {[%clk
0:00:39.6]} 63... g4 {[%clk 0:00:22.8]} 64. hxg4 {[%clk 0:00:39.2]} 64... Nxg4
{[%clk 0:00:23.6]} 65. Re6+ {[%clk 0:00:37.3]} 65... Kf4 {[%clk 0:00:24]} 66.
Rb6 {[%clk 0:00:23.9]} 66... Ra1+ {[%clk 0:00:22.6]} 0-1

[Event "Late-Titled-Tuesday-Blitz-April-30-2024"]
[Site "Chess.com"]
[Date "2024.04.30"]
[Round "2"]
[White "sassassasss"]
[Black "HajiyevKanan"]
[Result "0-1"]
[WhiteElo "2380"]
[BlackElo "2610"]
[TimeControl "180+1"]
[EndTime "14:19:04 PDT"]
[Termination "HajiyevKanan won on time"]

1. e4 {[%clk 0:02:58.3]} 1... c6 {[%clk 0:02:59.9]} 2. d4 {[%clk 0:02:58]} 2...
d5 {[%clk 0:03:00.8]} 3. e5 {[%clk 0:02:58.3]} 3... a6 {[%clk 0:03:01.5]} 4. Nf3
{[%clk 0:02:58.4]} 4... Bg4 {[%clk 0:03:01.7]} 5. Be2 {[%clk 0:02:58.8]} 5... e6
{[%clk 0:03:02.3]} 6. Be3 {[%clk 0:02:58.7]} 6... c5 {[%clk 0:03:02.8]} 7. O-O
{[%clk 0:02:58]} 7... Bxf3 {[%clk 0:03:01.8]} 8. Bxf3 {[%clk 0:02:58]} 8... cxd4
{[%clk 0:03:02.7]} 9. Bxd4 {[%clk 0:02:58.1]} 9... Nc6 {[%clk 0:03:03.6]} 10. c3
{[%clk 0:02:55.6]} 10... Qc7 {[%clk 0:03:04.2]} 11. Re1 {[%clk 0:02:55.2]} 11...
Nge7 {[%clk 0:03:04.2]} 12. Nd2 {[%clk 0:02:47.2]} 12... Ng6 {[%clk 0:03:04.2]}
13. Qe2 {[%clk 0:02:46.1]} 13... Be7 {[%clk 0:03:04.2]} 14. Nb3 {[%clk
0:02:45.4]} 14... O-O {[%clk 0:03:03.9]} 15. Rad1 {[%clk 0:02:44.9]} 15... a5
{[%clk 0:03:04.4]} 16. g3 {[%clk 0:02:42.8]} 16... a4 {[%clk 0:03:04.6]} 17. Nc1
{[%clk 0:02:41.9]} 17... Nxd4 {[%clk 0:02:57.3]} 18. Rxd4 {[%clk 0:02:31]} 18...
a3 {[%clk 0:02:57.2]} 19. h4 {[%clk 0:02:23.8]} 19... axb2 {[%clk 0:02:53.9]}
20. Qxb2 {[%clk 0:02:23.2]} 20... Nxe5 {[%clk 0:02:44.9]} 21. Bg2 {[%clk
0:02:22.9]} 21... Bf6 {[%clk 0:02:42.5]} 22. Rb4 {[%clk 0:02:21.2]} 22... Ra7
{[%clk 0:02:38.1]} 23. Qb3 {[%clk 0:02:02.8]} 23... h5 {[%clk 0:02:34.6]} 24. a4
{[%clk 0:01:57.7]} 24... Rc8 {[%clk 0:02:34.6]} 25. Re3 {[%clk 0:01:47.3]} 25...
g6 {[%clk 0:02:32.7]} 26. Ne2 {[%clk 0:01:34.9]} 26... Kg7 {[%clk 0:02:31]} 27.
Nd4 {[%clk 0:01:32.1]} 27... Ng4 {[%clk 0:02:24.8]} 28. Nb5 {[%clk 0:01:28.5]}
28... Qc5 {[%clk 0:02:18.1]} 29. Rf3 {[%clk 0:01:17.6]} 29... Ra6 {[%clk
0:02:08.3]} 30. Rbf4 {[%clk 0:01:13.8]} 30... e5 {[%clk 0:01:59.9]} 31. Rb4
{[%clk 0:01:07.2]} 31... e4 {[%clk 0:01:52.6]} 32. Rf4 {[%clk 0:01:06.5]} 32...
Be5 {[%clk 0:01:53.1]} 33. Rxg4 {[%clk 0:01:05.2]} 33... hxg4 {[%clk 0:01:54]}
34. Nd4 {[%clk 0:00:58.3]} 34... Qxc3 {[%clk 0:01:48.5]} 35. Qxd5 {[%clk
0:00:43.3]} 35... Rc5 {[%clk 0:01:34.9]} 36. Qxb7 {[%clk 0:00:35.9]} 36... Bxd4
{[%clk 0:01:25.3]} 37. Rxd4 {[%clk 0:00:35.6]} 37... Qxd4 {[%clk 0:01:19.2]} 38.
Qxa6 {[%clk 0:00:35.1]} 38... Rc1+ {[%clk 0:01:19.9]} 39. Bf1 {[%clk 0:00:27.1]}
39... Qd3 {[%clk 0:01:19.8]} 40. Kg2 {[%clk 0:00:11.6]} 40... Qf3+ {[%clk
0:01:10.4]} 41. Kg1 {[%clk 0:00:11.9]} 41... Rc2 {[%clk 0:01:09.5]} 42. Qb6
{[%clk 0:00:10.9]} 42... e3 {[%clk 0:00:59]} 43. Qxe3 {[%clk 0:00:10.5]} 43...
Qxe3 {[%clk 0:00:59]} 44. fxe3 {[%clk 0:00:11.1]} 44... Ra2 {[%clk 0:00:58.3]}
45. Bb5 {[%clk 0:00:11.7]} 45... f5 {[%clk 0:00:58.4]} 46. Kf1 {[%clk
0:00:11.3]} 46... Kf6 {[%clk 0:00:59]} 47. Bc6 {[%clk 0:00:11.1]} 47... Ke5
{[%clk 0:00:59.1]} 48. Be8 {[%clk 0:00:11.1]} 48... Ke4 {[%clk 0:00:57.4]} 49.
Bxg6 {[%clk 0:00:09.5]} 49... Rxa4 {[%clk 0:00:57.5]} 50. h5 {[%clk 0:00:09.6]}
50... Ra1+ {[%clk 0:00:54.8]} 51. Ke2 {[%clk 0:00:09.4]} 51... Ra2+ {[%clk
0:00:55.7]} 52. Kd1 {[%clk 0:00:09.4]} 52... Rg2 {[%clk 0:00:47.8]} 53. h6
{[%clk 0:00:07.4]} 53... Rxg3 {[%clk 0:00:48.3]} 54. h7 {[%clk 0:00:07.6]} 54...
Rh3 {[%clk 0:00:49]} 55. Ke2 {[%clk 0:00:07.7]} 55... Rh2+ {[%clk 0:00:49.3]}
56. Kf1 {[%clk 0:00:08]} 56... g3 {[%clk 0:00:49.8]} 57. Kg1 {[%clk 0:00:07.7]}
57... Rh6 {[%clk 0:00:47.6]} 58. Kg2 {[%clk 0:00:04.3]} 58... Ke5 {[%clk
0:00:40.8]} 59. Kxg3 {[%clk 0:00:04.4]} 59... Rxg6+ {[%clk 0:00:41.1]} 60. Kf3
{[%clk 0:00:03.9]} 60... Rh6 {[%clk 0:00:42]} 0-1

[Event "Late-Titled-Tuesday-Blitz-April-30-2024"]
[Site "Chess.com"]
[Date "2024.04.30"]
[Round "2"]
[White "KuzubovYuriy"]
[Black "annasargsyan_m"]
[Result "1-0"]
[WhiteElo "2963"]
[BlackElo "2612"]
[TimeControl "180+1"]
[EndTime "14:19:06 PDT"]
[Termination "KuzubovYuriy won by resignation"]

1. d4 {[%clk 0:03:00.9]} 1... d5 {[%clk 0:02:59.9]} 2. c4 {[%clk 0:03:00.6]}
2... c6 {[%clk 0:03:00.5]} 3. Nf3 {[%clk 0:03:00.7]} 3... Nf6 {[%clk 0:03:01]}
4. Nc3 {[%clk 0:03:00.2]} 4... dxc4 {[%clk 0:03:00.8]} 5. a4 {[%clk 0:03:00.2]}
5... Bf5 {[%clk 0:03:00.9]} 6. Nh4 {[%clk 0:03:00.3]} 6... Bc8 {[%clk
0:02:59.6]} 7. e3 {[%clk 0:02:57.8]} 7... e5 {[%clk 0:02:55.1]} 8. Bxc4 {[%clk
0:02:57.2]} 8... exd4 {[%clk 0:02:54.7]} 9. exd4 {[%clk 0:02:57.6]} 9... Bd6
{[%clk 0:02:54.6]} 10. O-O {[%clk 0:02:47]} 10... O-O {[%clk 0:02:43.1]} 11. h3
{[%clk 0:02:42.5]} 11... Nbd7 {[%clk 0:02:41.7]} 12. a5 {[%clk 0:02:37.7]} 12...
b5 {[%clk 0:02:34]} 13. axb6 {[%clk 0:02:34.8]} 13... Nxb6 {[%clk 0:02:33.3]}
14. Bb3 {[%clk 0:02:32.5]} 14... a5 {[%clk 0:02:32.9]} 15. Qf3 {[%clk
0:02:24.8]} 15... Nbd5 {[%clk 0:02:02.2]} 16. Bg5 {[%clk 0:02:01.3]} 16... h6
{[%clk 0:01:55.8]} 17. Bxf6 {[%clk 0:01:58.2]} 17... Nxf6 {[%clk 0:01:44.2]} 18.
Bc4 {[%clk 0:01:30]} 18... Rb8 {[%clk 0:01:42]} 19. Ra2 {[%clk 0:01:11.5]} 19...
Bc7 {[%clk 0:01:39.7]} 20. Rd1 {[%clk 0:00:34.3]} 20... Qd6 {[%clk 0:01:30.4]}
21. Kf1 {[%clk 0:00:31.8]} 21... Re8 {[%clk 0:01:19.8]} 22. g4 {[%clk
0:00:26.9]} 22... Qh2 {[%clk 0:01:03.8]} 23. Nf5 {[%clk 0:00:20.6]} 23... h5
{[%clk 0:00:33.7]} 24. Re1 {[%clk 0:00:11.6]} 24... Rxe1+ {[%clk 0:00:27]} 25.
Kxe1 {[%clk 0:00:12.5]} 25... hxg4 {[%clk 0:00:27.3]} 26. hxg4 {[%clk
0:00:12.7]} 26... Qg1+ {[%clk 0:00:27.3]} 27. Kd2 {[%clk 0:00:11.7]} 27... Qxg4
{[%clk 0:00:16.2]} 28. Ne7+ {[%clk 0:00:11]} 28... Kf8 {[%clk 0:00:16.4]} 29.
Qxg4 {[%clk 0:00:09.6]} 29... Bxg4 {[%clk 0:00:16.9]} 30. Nxc6 {[%clk
0:00:08.7]} 30... Re8 {[%clk 0:00:16.3]} 31. Ra1 {[%clk 0:00:07.4]} 31... Bf4+
{[%clk 0:00:16.7]} 32. Kc2 {[%clk 0:00:07.4]} 32... Bf5+ {[%clk 0:00:16.1]} 33.
Bd3 {[%clk 0:00:07.7]} 33... Bd7 {[%clk 0:00:11]} 34. Nxa5 {[%clk 0:00:07.1]}
34... Ng4 {[%clk 0:00:11.7]} 35. Nd1 {[%clk 0:00:05.3]} 35... Rc8+ {[%clk
0:00:09.6]} 36. Nc4 {[%clk 0:00:05.5]} 36... Be6 {[%clk 0:00:04.6]} 37. b3
{[%clk 0:00:05.9]} 37... Nf6 {[%clk 0:00:03.7]} 38. Ne3 {[%clk 0:00:05.5]} 38...
Nd5 {[%clk 0:00:03]} 39. Nxd5 {[%clk 0:00:05.8]} 39... Bxd5 {[%clk 0:00:03.9]}
40. Ra5 {[%clk 0:00:05.9]} 40... Be6 {[%clk 0:00:04]} 41. d5 {[%clk 0:00:06]}
41... Bd7 {[%clk 0:00:04.6]} 42. Ra7 {[%clk 0:00:05.9]} 42... Ke8 {[%clk
0:00:04.3]} 43. Rxd7 {[%clk 0:00:05]} 43... Kxd7 {[%clk 0:00:04.2]} 44. Bf5+
{[%clk 0:00:05.3]} 44... Kd8 {[%clk 0:00:05.1]} 45. Bxc8 {[%clk 0:00:05.7]}
45... Kxc8 {[%clk 0:00:06]} 46. Kd3 {[%clk 0:00:06.1]} 46... g5 {[%clk
0:00:06.5]} 47. Ke4 {[%clk 0:00:06.3]} 47... Kd7 {[%clk 0:00:07.4]} 48. f3
{[%clk 0:00:06.5]} 48... Bc1 {[%clk 0:00:07.6]} 49. b4 {[%clk 0:00:06.6]} 49...
Bf4 {[%clk 0:00:06.5]} 50. b5 {[%clk 0:00:06.8]} 50... f6 {[%clk 0:00:06.8]} 51.
Kf5 {[%clk 0:00:07.3]} 51... Ke7 {[%clk 0:00:06.8]} 52. d6+ {[%clk 0:00:07.1]}
52... Kd7 {[%clk 0:00:03.6]} 53. Kxf6 {[%clk 0:00:07.4]} 1-0